[Event "Open Cappelle-la-Grande"]
[Date "2026.02.25"]
[White "Zylka, Stanislaw"]
[Black "Levin, Guy"]
[WhiteElo "2347"]
[BlackElo "2440"]
[Round "6.6.11"]
[Result "0-1"]
[TimeControl "40/5400+30:1800+30"]

e4 {[%clk 1:30:47]} c6 {[%clk 1:30:48]} d4 {[%clk 1:31:08]} d5 {[%clk 1:31:15]}
e5 {[%clk 1:31:31]} Bf5 {[%clk 1:31:40]} c4 {[%clk 1:31:56]} e6 {[%clk 1:31:50]}
Nc3 {[%clk 1:32:21]} dxc4 {[%clk 1:31:22]} Bxc4 {[%clk 1:32:45]} Nd7 {[%clk
1:31:45]} Nge2 {[%clk 1:32:59]} Nb6 {[%clk 1:31:51]} Bb3 {[%clk 1:33:24]} Ne7
{[%clk 1:25:39]} O-O {[%clk 1:33:44]} h5 {[%clk 1:19:04]} Ng3 {[%clk 1:24:58]}
Bg6 {[%clk 1:17:17]} Nce4 {[%clk 1:13:00]} Nf5 {[%clk 1:15:49]} Nxf5 {[%clk
1:13:23]} Bxf5 {[%clk 1:16:01]} Ng3 {[%clk 1:13:37]} g6 {[%clk 1:08:05]} Be3
{[%clk 0:55:36]} h4 {[%clk 1:00:32]} Nxf5 {[%clk 0:55:47]} gxf5 {[%clk 1:00:53]}
Qe2 {[%clk 0:54:48]} Be7 {[%clk 0:52:12]} Kh1 {[%clk 0:49:18]} Qd7 {[%clk
0:49:47]} h3 {[%clk 0:42:02]} Nd5 {[%clk 0:49:08]} Rfc1 {[%clk 0:37:59]} O-O-O
{[%clk 0:45:30]} Bd2 {[%clk 0:35:21]} Kb8 {[%clk 0:43:04]} Qf3 {[%clk 0:34:48]}
Rhg8 {[%clk 0:40:07]} Rab1 {[%clk 0:33:14]} Bg5 {[%clk 0:33:32]} Bxg5 {[%clk
0:28:34]} Rxg5 {[%clk 0:32:46]} Bc4 {[%clk 0:27:34]} Nb6 {[%clk 0:28:19]} Bf1
{[%clk 0:27:23]} Qd5 {[%clk 0:26:40]} Qf4 {[%clk 0:20:11]} Rdg8 {[%clk 0:26:53]}
Rc5 {[%clk 0:17:30]} Qxa2 {[%clk 0:25:48]} Qc1 {[%clk 0:15:52]} Qb3 {[%clk
0:22:07]} Ra1 {[%clk 0:15:13]} Qb4 {[%clk 0:20:18]} Rca5 {[%clk 0:08:31]} Qxd4
{[%clk 0:16:17]} Rxa7 {[%clk 0:08:45]} Qxf2 {[%clk 0:15:06]} Qd1 {[%clk
0:08:36]} Nd5 {[%clk 0:14:41]} Ra8+ {[%clk 0:07:31]} Kc7 {[%clk 0:15:09]} Rxg8
{[%clk 0:07:50]} Rxg8 {[%clk 0:15:37]} Qh5 {[%clk 0:08:00]} Rf8 {[%clk 0:15:08]}
Qh6 {[%clk 0:07:31]} Rd8 {[%clk 0:13:35]} Qg7 {[%clk 0:06:32]} Qxb2 {[%clk
0:13:15]} Rd1 {[%clk 0:06:37]} Rd7 {[%clk 0:10:11]}

[Variant "Standard"]
[Site "Europe Echecs"]

[Event "Open Cappelle-la-Grande"]
[Date "2026.02.25"]
[White "El Zein, Zayne-Eddine"]
[Black "Poetsch, Hagen"]
[WhiteElo "2294"]
[BlackElo "2433"]
[Round "6.6.12"]
[Result "0-1"]
[TimeControl "40/5400+30:1800+30"]

d4 {[%clk 1:30:52]} Nf6 {[%clk 1:30:06]} Nf3 {[%clk 1:31:10]} b6 {[%clk
1:30:27]} e3 {[%clk 1:31:23]} Bb7 {[%clk 1:30:51]} Bd3 {[%clk 1:31:48]} g6
{[%clk 1:31:08]} Nbd2 {[%clk 1:31:01]} d5 {[%clk 1:28:56]} Qe2 {[%clk 1:28:31]}
c5 {[%clk 1:26:34]} c3 {[%clk 1:26:29]} Bg7 {[%clk 1:26:13]} O-O {[%clk
1:26:35]} O-O {[%clk 1:26:36]} Rd1 {[%clk 0:58:41]} Nbd7 {[%clk 1:18:11]} b3
{[%clk 0:53:31]} Qc7 {[%clk 1:14:55]} Bb2 {[%clk 0:50:31]} e5 {[%clk 1:13:03]}
Nxe5 {[%clk 0:48:57]} Nxe5 {[%clk 1:13:27]} dxe5 {[%clk 0:49:21]} Qxe5 {[%clk
1:13:47]} Nf3 {[%clk 0:49:27]} Qh5 {[%clk 1:13:21]} Ba6 {[%clk 0:40:45]} Bxa6
{[%clk 1:11:17]} Qxa6 {[%clk 0:40:57]} Ne4 {[%clk 1:11:11]} Rac1 {[%clk
0:38:32]} Rfd8 {[%clk 1:04:04]} h3 {[%clk 0:31:44]} Qf5 {[%clk 1:01:00]} Ba1
{[%clk 0:29:00]} Rd7 {[%clk 0:52:38]} Qe2 {[%clk 0:25:27]} Rad8 {[%clk 0:43:59]}
Nd2 {[%clk 0:23:01]} b5 {[%clk 0:37:48]} b4 {[%clk 0:11:50]} c4 {[%clk 0:35:39]}
Nf3 {[%clk 0:12:02]} Re7 {[%clk 0:30:13]} Nd4 {[%clk 0:12:02]} Qd7 {[%clk
0:30:34]} Bb2 {[%clk 0:10:00]} f5 {[%clk 0:28:18]} Qc2 {[%clk 0:08:06]} Rf8
{[%clk 0:26:39]} Ra1 {[%clk 0:04:04]} f4 {[%clk 0:25:16]} exf4 {[%clk 0:03:38]}
Rxf4 {[%clk 0:25:39]} f3 {[%clk 0:03:41]} Ng3 {[%clk 0:24:10]} Re1 {[%clk
0:04:06]} Rff7 {[%clk 0:16:21]} Qf2 {[%clk 0:03:04]} Bxd4 {[%clk 0:16:26]} cxd4
{[%clk 0:03:21]} Nh5 {[%clk 0:15:33]} Rxe7 {[%clk 0:02:48]} Qxe7 {[%clk
0:14:16]} Bc3 {[%clk 0:02:50]} Nf4 {[%clk 0:14:33]} Re1 {[%clk 0:03:00]} Qg5
{[%clk 0:10:06]} Kh2 {[%clk 0:03:08]} Nd3 {[%clk 0:09:08]} Re8+ {[%clk 0:03:31]}
Kg7 {[%clk 0:07:28]} Qe3 {[%clk 0:02:52]} Qxe3 {[%clk 0:07:16]} Rxe3 {[%clk
0:03:15]} a5 {[%clk 0:04:12]} a3 {[%clk 0:01:11]} axb4 {[%clk 0:04:35]} axb4
{[%clk 0:25:07]} Ra7 {[%clk 0:31:40]} Re8 {[%clk 0:12:55]} Ra2 {[%clk 0:30:50]}
Kg3 {[%clk 0:11:58]} Rc2 {[%clk 0:27:38]} Be1 {[%clk 0:12:02]} Kf7 {[%clk
0:27:13]} Re3 {[%clk 0:11:59]} g5 {[%clk 0:20:21]} Kg4 {[%clk 0:10:23]} Kf6
{[%clk 0:20:36]} g3 {[%clk 0:08:07]} Nxe1 {[%clk 0:20:30]} Rxe1 {[%clk 0:08:28]}
Rd2 {[%clk 0:20:55]} f4 {[%clk 0:07:50]} Rxd4 {[%clk 0:21:05]} Ra1 {[%clk
0:07:51]} gxf4 {[%clk 0:20:42]} gxf4 {[%clk 0:08:14]} h5+ {[%clk 0:19:15]} Kf3
{[%clk 0:08:17]} Kf5 {[%clk 0:19:23]}

[Variant "Standard"]
[Site "Europe Echecs"]

[Event "Open Cappelle-la-Grande"]
[Date "2026.02.25"]
[White "Bournel, Antoine"]
[Black "Ringuet, Noe"]
[WhiteElo "2434"]
[BlackElo "2252"]
[Round "6.6.13"]
[Result "1-0"]
[TimeControl "40/5400+30:1800+30"]

e4 {[%clk 1:30:31]} d5 {[%clk 1:29:29]} exd5 {[%clk 1:30:35]} Qxd5 {[%clk
1:29:48]} Nc3 {[%clk 1:28:31]} Qd6 {[%clk 1:29:53]} d4 {[%clk 1:28:11]} Nf6
{[%clk 1:30:06]} Nf3 {[%clk 1:28:06]} c6 {[%clk 1:29:39]} h3 {[%clk 1:27:05]}
Bf5 {[%clk 1:29:22]} Ne5 {[%clk 1:25:58]} e6 {[%clk 1:14:11]} g4 {[%clk
1:22:53]} Bg6 {[%clk 1:14:32]} h4 {[%clk 1:14:42]} Nd5 {[%clk 0:55:44]} Bg2
{[%clk 0:51:04]} Nxc3 {[%clk 0:46:27]} bxc3 {[%clk 0:51:20]} f6 {[%clk 0:46:34]}
Nxg6 {[%clk 0:50:18]} hxg6 {[%clk 0:46:58]} Qd3 {[%clk 0:49:23]} f5 {[%clk
0:26:58]} Rb1 {[%clk 0:47:41]} b6 {[%clk 0:23:16]} h5 {[%clk 0:39:35]} Nd7
{[%clk 0:22:19]} hxg6 {[%clk 0:34:21]} Rxh1+ {[%clk 0:22:36]} Bxh1 {[%clk
0:34:49]} fxg4 {[%clk 0:17:12]} c4 {[%clk 0:32:07]} Rc8 {[%clk 0:13:45]} Kf1
{[%clk 0:30:02]} Be7 {[%clk 0:13:16]} Bb2 {[%clk 0:25:28]} Kd8 {[%clk 0:10:56]}
Re1 {[%clk 0:19:01]} Bf6 {[%clk 0:09:28]} Qe2 {[%clk 0:14:13]} g3 {[%clk
0:02:15]} fxg3 {[%clk 0:10:04]} Qxg3 {[%clk 0:01:34]} Qxe6 {[%clk 0:09:08]} Qf4+
{[%clk 0:02:00]} Ke2 {[%clk 0:08:39]} Bg5 {[%clk 0:00:54]} Bc1 {[%clk 0:05:14]}
Qh2+ {[%clk 0:01:15]} Kd1 {[%clk 0:03:37]} Qh5+ {[%clk 0:01:41]} Qe2 {[%clk
0:04:00]} Qxe2+ {[%clk 0:00:44]} Kxe2 {[%clk 0:04:18]} Bxc1 {[%clk 0:01:11]}
Rxc1 {[%clk 0:04:42]} c5 {[%clk 0:00:34]} c3 {[%clk 0:05:10]} Ke7 {[%clk
0:00:35]} Bd5 {[%clk 0:03:56]} Rh8 {[%clk 0:00:47]} Re1 {[%clk 0:03:51]} Rh2+
{[%clk 0:00:32]} Kd3+ {[%clk 0:04:08]} Kd8 {[%clk 0:00:42]} Rf1 {[%clk 0:02:10]}
Rh3+ {[%clk 0:00:55]} Kc2 {[%clk 0:02:05]} Rg3 {[%clk 0:01:21]} Bf7 {[%clk
0:02:20]} Nf8 {[%clk 0:00:37]} dxc5 {[%clk 0:01:10]} bxc5 {[%clk 0:01:04]} Rf5
{[%clk 0:01:21]} Nxg6 {[%clk 0:00:34]} Rxc5 {[%clk 0:01:48]} Ne7 {[%clk
0:00:35]} Ra5 {[%clk 0:27:48]} Rf3 {[%clk 0:30:07]} Bd5 {[%clk 0:25:25]} Rf2+
{[%clk 0:25:37]} Kd3 {[%clk 0:25:11]} g5 {[%clk 0:22:21]} Be6 {[%clk 0:20:13]}
Nc6 {[%clk 0:22:12]} Rc5 {[%clk 0:18:23]} Kc7 {[%clk 0:19:38]} Bd5 {[%clk
0:17:24]} Rf6 {[%clk 0:20:03]} Be4 {[%clk 0:16:04]} g4 {[%clk 0:18:48]} Rg5
{[%clk 0:15:38]} Re6 {[%clk 0:17:16]} Bd5 {[%clk 0:11:31]} Re7 {[%clk 0:11:15]}
Rg8 {[%clk 0:11:08]} Kb6 {[%clk 0:06:54]} Rg6 {[%clk 0:09:12]} Rc7 {[%clk
0:07:19]} Rg5 {[%clk 0:09:28]} Re7 {[%clk 0:07:18]} Rg6 {[%clk 0:08:51]} Rc7
{[%clk 0:07:45]} Be4 {[%clk 0:07:51]} Rd7+ {[%clk 0:06:38]} Kc2 {[%clk 0:08:02]}
Rc7 {[%clk 0:07:04]} Kb3 {[%clk 0:06:32]} Kc5 {[%clk 0:06:30]} Rg5+ {[%clk
0:05:47]} Kb6 {[%clk 0:06:56]} Rb5+ {[%clk 0:03:30]} Ka6 {[%clk 0:07:22]} Ka4
{[%clk 0:03:06]} g3 {[%clk 0:03:18]} c5 {[%clk 0:03:32]} Rg7 {[%clk 0:00:34]}
Bd3 {[%clk 0:03:29]}

[Variant "Standard"]
[Site "Europe Echecs"]

[Event "Open Cappelle-la-Grande"]
[Date "2026.02.25"]
[White "Fiedorek, Michal"]
[Black "Toktomushev, Teimur"]
[WhiteElo "2288"]
[BlackElo "2428"]
[Round "6.6.14"]
[Result "1-0"]
[TimeControl "40/5400+30:1800+30"]

e4 {[%clk 1:30:55]} c5 {[%clk 1:26:51]} Nf3 {[%clk 1:31:10]} d6 {[%clk 1:27:11]}
d4 {[%clk 1:31:10]} cxd4 {[%clk 1:27:34]} Nxd4 {[%clk 1:31:35]} Nf6 {[%clk
1:27:48]} Nc3 {[%clk 1:31:56]} a6 {[%clk 1:28:07]} Be3 {[%clk 1:31:24]} e6
{[%clk 1:28:17]} Be2 {[%clk 1:25:44]} Be7 {[%clk 1:17:01]} O-O {[%clk 1:25:33]}
O-O {[%clk 1:16:45]} f4 {[%clk 1:19:40]} Qc7 {[%clk 1:16:48]} a4 {[%clk
1:19:39]} Nc6 {[%clk 1:07:05]} Kh1 {[%clk 1:19:49]} Bd7 {[%clk 0:55:47]} Qe1
{[%clk 1:19:54]} b5 {[%clk 0:43:42]} axb5 {[%clk 0:53:29]} Nxd4 {[%clk 0:43:54]}
Bxd4 {[%clk 0:53:47]} axb5 {[%clk 0:42:12]} Rxa8 {[%clk 0:44:14]} Rxa8 {[%clk
0:39:38]} e5 {[%clk 0:44:36]} dxe5 {[%clk 0:38:57]} fxe5 {[%clk 0:41:56]} Nd5
{[%clk 0:39:07]} Nxd5 {[%clk 0:41:33]} exd5 {[%clk 0:39:33]} Bd3 {[%clk
0:41:16]} b4 {[%clk 0:26:28]} Qf2 {[%clk 0:37:29]} Be6 {[%clk 0:26:12]} h3
{[%clk 0:34:39]} h6 {[%clk 0:15:00]} Rd1 {[%clk 0:30:32]} Qc8 {[%clk 0:10:41]}
Kh2 {[%clk 0:30:07]} Ra5 {[%clk 0:06:10]} Rf1 {[%clk 0:29:48]} Ra2 {[%clk
0:04:40]} Qf4 {[%clk 0:26:40]} Bc5 {[%clk 0:03:05]} Qf2 {[%clk 0:21:13]} Bxd4
{[%clk 0:02:53]} Qxd4 {[%clk 0:21:41]} Qb8 {[%clk 0:03:14]} b3 {[%clk 0:21:36]}
Ra7 {[%clk 0:02:11]} Kg1 {[%clk 0:20:52]} Qb7 {[%clk 0:01:37]} Rf4 {[%clk
0:20:17]} Qc7 {[%clk 0:00:53]} Rf1 {[%clk 0:19:43]} Ra8 {[%clk 0:00:55]} Qxb4
{[%clk 0:12:49]} Qxe5 {[%clk 0:01:19]} Qf4 {[%clk 0:12:52]} Qc3 {[%clk 0:00:32]}
Rf3 {[%clk 0:11:18]} Qc5+ {[%clk 0:00:32]} Kh2 {[%clk 0:10:53]} Qe7 {[%clk
0:00:31]} Qe5 {[%clk 0:10:50]} Qg5 {[%clk 0:00:33]} Qd4 {[%clk 0:10:32]} f6
{[%clk 0:00:37]} Re3 {[%clk 0:09:24]} Bf7 {[%clk 0:00:35]} Re7 {[%clk 0:03:32]}
Re8 {[%clk 0:00:57]} Rxe8+ {[%clk 0:03:58]} Bxe8 {[%clk 0:01:25]} c3 {[%clk
0:14:40]} Qe5+ {[%clk 0:26:12]} Kg1 {[%clk 0:14:55]} Qe1+ {[%clk 0:22:05]} Bf1
{[%clk 0:14:20]} Kh8 {[%clk 0:16:53]} Qd3 {[%clk 0:11:25]} Bc6 {[%clk 0:03:41]}
b4 {[%clk 0:11:34]} f5 {[%clk 0:02:21]} b5 {[%clk 0:08:51]} Bb7 {[%clk 0:02:48]}
Qd4 {[%clk 0:01:10]} Kh7 {[%clk 0:01:57]} Qb6 {[%clk 0:00:55]} Bc8 {[%clk
0:00:39]} Qc7 {[%clk 0:01:02]} d4 {[%clk 0:00:32]} cxd4 {[%clk 0:00:39]} Qe3+
{[%clk 0:00:32]} Kh2 {[%clk 0:01:01]} Qf2 {[%clk 0:00:31]} Bc4 {[%clk 0:00:34]}
Qxd4 {[%clk 0:00:40]} Qxc8 {[%clk 0:00:48]} Qf4+ {[%clk 0:01:01]} Kg1 {[%clk
0:01:00]} Qc1+ {[%clk 0:00:46]} Kf2 {[%clk 0:01:22]} Qc2+ {[%clk 0:01:13]} Kg3
{[%clk 0:00:47]} Qc3+ {[%clk 0:01:37]} Kf4 {[%clk 0:00:47]} Qd4+ {[%clk
0:00:33]} Kxf5 {[%clk 0:00:46]} Qf2+ {[%clk 0:00:40]} Ke5 {[%clk 0:00:41]} Qg3+
{[%clk 0:00:32]} Kd4 {[%clk 0:00:37]} Qf2+ {[%clk 0:00:32]} Kd5 {[%clk 0:00:38]}
Qxg2+ {[%clk 0:00:53]} Kd6 {[%clk 0:00:39]} Qg3+ {[%clk 0:01:07]} Kc6 {[%clk
0:00:54]} Qf3+ {[%clk 0:01:24]} Kb6 {[%clk 0:01:03]} Qf6+ {[%clk 0:01:48]} Qe6
{[%clk 0:01:05]} Qd8+ {[%clk 0:01:55]} Kb7 {[%clk 0:01:23]}

[Variant "Standard"]
[Site "Europe Echecs"]

[Event "Open Cappelle-la-Grande"]
[Date "2026.02.25"]
[White "Degraeve, Jean-Marc"]
[Black "Helmer, Jan"]
[WhiteElo "2503"]
[BlackElo "2234"]
[Round "6.6.15"]
[Result "1-0"]
[TimeControl "40/5400+30:1800+30"]

e4 {[%clk 1:30:57]} c5 {[%clk 1:29:27]} Nc3 {[%clk 1:31:06]} Nc6 {[%clk
1:29:37]} Bb5 {[%clk 1:31:22]} Nd4 {[%clk 1:30:00]} Bc4 {[%clk 1:31:41]} e6
{[%clk 1:29:04]} Nge2 {[%clk 1:31:47]} Ne7 {[%clk 1:27:36]} Nxd4 {[%clk
1:30:39]} cxd4 {[%clk 1:28:00]} Ne2 {[%clk 1:31:04]} Nc6 {[%clk 1:23:06]} O-O
{[%clk 1:31:10]} Be7 {[%clk 1:21:01]} c3 {[%clk 1:26:14]} d5 {[%clk 1:17:26]}
exd5 {[%clk 1:26:03]} exd5 {[%clk 1:17:47]} Bb5 {[%clk 1:25:27]} dxc3 {[%clk
1:17:37]} dxc3 {[%clk 1:25:50]} O-O {[%clk 1:12:59]} Be3 {[%clk 1:25:34]} Bf6
{[%clk 1:08:41]} h3 {[%clk 1:15:34]} Be6 {[%clk 0:56:32]} Re1 {[%clk 1:13:30]}
a6 {[%clk 0:56:20]} Bd3 {[%clk 1:13:38]} Re8 {[%clk 0:50:32]} Bc2 {[%clk
1:08:50]} g6 {[%clk 0:46:14]} Nd4 {[%clk 1:08:57]} Rc8 {[%clk 0:37:05]} Nf3
{[%clk 1:05:47]} b5 {[%clk 0:34:42]} a3 {[%clk 1:02:42]} a5 {[%clk 0:31:27]} Nd4
{[%clk 1:02:19]} Nxd4 {[%clk 0:28:35]} Bxd4 {[%clk 1:01:07]} Bxd4 {[%clk
0:23:59]} cxd4 {[%clk 0:52:32]} Qb6 {[%clk 0:18:31]} Qd2 {[%clk 0:51:30]} Rc4
{[%clk 0:15:27]} Rad1 {[%clk 0:49:19]} Rec8 {[%clk 0:15:50]} Bb1 {[%clk
0:47:11]} b4 {[%clk 0:12:00]} h4 {[%clk 0:47:33]} Qd8 {[%clk 0:06:33]} Qf4
{[%clk 0:44:07]} Qc7 {[%clk 0:02:15]} Qh6 {[%clk 0:43:56]} Qd6 {[%clk 0:01:44]}
h5 {[%clk 0:41:38]} Qf8 {[%clk 0:02:10]} Qf4 {[%clk 0:41:58]} Qg7 {[%clk
0:01:40]} Re5 {[%clk 0:41:51]} bxa3 {[%clk 0:00:53]} bxa3 {[%clk 0:42:16]} R4c6
{[%clk 0:00:57]} Rde1 {[%clk 0:42:30]} Qf8 {[%clk 0:00:40]} g3 {[%clk 0:37:36]}
Qxa3 {[%clk 0:00:54]} Kg2 {[%clk 0:37:23]} Rc1 {[%clk 0:00:39]} hxg6 {[%clk
0:37:22]} hxg6 {[%clk 0:00:52]} Bxg6 {[%clk 0:37:25]} Rxe1 {[%clk 0:00:39]} Rxe1
{[%clk 0:37:23]} Qf8 {[%clk 0:00:39]} Bb1 {[%clk 0:35:21]} Qg7 {[%clk 0:00:39]}
Re5 {[%clk 0:31:40]} Qh8 {[%clk 0:28:11]} Rg5+ {[%clk 1:00:52]} Kf8 {[%clk
0:28:36]} Qd6+ {[%clk 0:52:55]} Ke8 {[%clk 0:29:04]} Bd3 {[%clk 0:49:42]} Qh3+
{[%clk 0:28:53]} Kf3 {[%clk 0:50:05]}

[Variant "Standard"]
[Site "Europe Echecs"]

[Event "Open Cappelle-la-Grande"]
[Date "2026.02.25"]
[White "Szczotka, Klara"]
[Black "Shchekachev, Andrei"]
[WhiteElo "2205"]
[BlackElo "2474"]
[Round "6.6.16"]
[Result "1-0"]
[TimeControl "40/5400+30:1800+30"]

d4 {[%clk 1:30:57]} g6 {[%clk 1:30:44]} c4 {[%clk 1:31:21]} Bg7 {[%clk 1:30:55]}
Nc3 {[%clk 1:31:45]} c5 {[%clk 1:29:34]} d5 {[%clk 1:29:20]} d6 {[%clk 1:29:14]}
e4 {[%clk 1:28:31]} Bxc3+ {[%clk 1:26:50]} bxc3 {[%clk 1:28:52]} e5 {[%clk
1:27:15]} Bd3 {[%clk 1:26:38]} Nd7 {[%clk 1:20:27]} Ne2 {[%clk 1:24:08]} Qe7
{[%clk 1:20:41]} g4 {[%clk 1:18:23]} Qh4 {[%clk 0:56:58]} Ng3 {[%clk 1:15:07]}
Kd8 {[%clk 0:53:54]} Be3 {[%clk 1:10:35]} Kc7 {[%clk 0:52:59]} h3 {[%clk
1:08:03]} h6 {[%clk 0:51:39]} Qd2 {[%clk 1:00:46]} a6 {[%clk 0:38:31]} a4 {[%clk
1:00:00]} a5 {[%clk 0:38:54]} Kf1 {[%clk 0:57:27]} Qf6 {[%clk 0:25:39]} Kg2
{[%clk 0:48:00]} Qg7 {[%clk 0:25:56]} Kh2 {[%clk 0:42:10]} Ne7 {[%clk 0:20:58]}
Rhg1 {[%clk 0:37:04]} Ra6 {[%clk 0:19:58]} Be2 {[%clk 0:30:10]} Qf8 {[%clk
0:19:14]} Raf1 {[%clk 0:19:26]} g5 {[%clk 0:18:32]} Rb1 {[%clk 0:16:44]} Ng6
{[%clk 0:17:54]} Nf5 {[%clk 0:13:34]} Nf4 {[%clk 0:15:12]} Rb5 {[%clk 0:11:47]}
h5 {[%clk 0:10:20]} Bxf4 {[%clk 0:08:27]} exf4 {[%clk 0:10:24]} gxh5 {[%clk
0:07:45]} Nf6 {[%clk 0:06:17]} Bf3 {[%clk 0:04:03]} Bxf5 {[%clk 0:05:26]} exf5
{[%clk 0:04:25]} Qe7 {[%clk 0:01:21]} Qe2 {[%clk 0:02:55]} Qxe2 {[%clk 0:01:03]}
Bxe2 {[%clk 0:03:23]} Rg8 {[%clk 0:00:47]} Bg4 {[%clk 0:00:40]} Nd7 {[%clk
0:00:43]} Re1 {[%clk 0:00:34]} Ne5 {[%clk 0:00:57]} f6 {[%clk 0:00:36]} b6
{[%clk 0:01:04]} Re4 {[%clk 0:00:40]} Rh8 {[%clk 0:00:50]} f3 {[%clk 0:00:47]}
Rh6 {[%clk 0:00:45]} h4 {[%clk 0:00:48]} gxh4 {[%clk 0:01:06]} Rxf4 {[%clk
0:00:55]} Ra8 {[%clk 0:00:57]} Rb1 {[%clk 0:00:38]} Re8 {[%clk 0:00:38]} Rd1
{[%clk 0:00:54]} Rhh8 {[%clk 0:00:36]} Kh3 {[%clk 0:00:40]} Rh7 {[%clk 0:00:35]}
Re1 {[%clk 0:00:39]} Rg8 {[%clk 0:00:37]} Ree4 {[%clk 0:24:50]} Kd8 {[%clk
0:15:25]} Rf5 {[%clk 0:21:30]} Re8 {[%clk 0:13:30]} Kxh4 {[%clk 0:17:32]} Rg8
{[%clk 0:13:26]} Rg5 {[%clk 0:16:15]} Rg6 {[%clk 0:10:33]} Rxg6 {[%clk 0:12:28]}
fxg6 {[%clk 0:10:45]} Kg5 {[%clk 0:12:06]} Rh8 {[%clk 0:10:26]}

[Variant "Standard"]
[Site "Europe Echecs"]

[Event "Open Cappelle-la-Grande"]
[Date "2026.02.25"]
[White "Razafindratsima, Timothe"]
[Black "Pranesh M"]
[WhiteElo "2504"]
[BlackElo "2627"]
[Round "7.7.1"]
[Result "1/2-1/2"]
[TimeControl "40/5400+30:1800+30"]

e4 {[%clk 1:30:57]} e5 {[%clk 1:30:55]} Nf3 {[%clk 1:31:24]} Nc6 {[%clk
1:31:21]} Bb5 {[%clk 1:31:50]} g6 {[%clk 1:31:36]} d4 {[%clk 1:28:59]} exd4
{[%clk 1:31:53]} Bg5 {[%clk 1:29:23]} Be7 {[%clk 1:32:04]} Bxe7 {[%clk 1:27:06]}
Qxe7 {[%clk 1:32:14]} O-O {[%clk 1:27:28]} Nf6 {[%clk 1:31:51]} e5 {[%clk
1:27:26]} Nd5 {[%clk 1:30:00]} Re1 {[%clk 1:24:05]} Qb4 {[%clk 1:27:53]} Bxc6
{[%clk 1:14:20]} dxc6 {[%clk 1:28:07]} Qxd4 {[%clk 1:14:22]} Qxd4 {[%clk
1:19:56]} Nxd4 {[%clk 1:14:50]} Bd7 {[%clk 1:17:55]} Nd2 {[%clk 1:06:57]} c5
{[%clk 1:17:13]} e6 {[%clk 1:03:15]} cxd4 {[%clk 1:15:36]} exd7+ {[%clk
1:03:39]} Kxd7 {[%clk 1:16:01]} Nb3 {[%clk 1:02:15]} Rhe8 {[%clk 1:11:41]} Red1
{[%clk 0:59:05]} Rad8 {[%clk 1:11:23]} Rxd4 {[%clk 0:59:28]} Kc8 {[%clk
1:11:46]} Kf1 {[%clk 0:59:25]} Nb6 {[%clk 1:07:01]} Re1 {[%clk 0:58:16]}

[Variant "Standard"]
[Site "Europe Echecs"]

[Event "Open Cappelle-la-Grande"]
[Date "2026.02.25"]
[White "Bournel, Antoine"]
[Black "Pranav Anand"]
[WhiteElo "2434"]
[BlackElo "2606"]
[Round "7.7.2"]
[Result "0-1"]
[TimeControl "40/5400+30:1800+30"]

d4 {[%clk 1:30:43]} Nf6 {[%clk 1:30:50]} c4 {[%clk 1:30:59]} e6 {[%clk 1:31:13]}
Nf3 {[%clk 1:31:10]} d5 {[%clk 1:31:37]} Nc3 {[%clk 1:31:15]} Nbd7 {[%clk
1:32:00]} cxd5 {[%clk 1:30:30]} exd5 {[%clk 1:32:16]} Bg5 {[%clk 1:30:35]} h6
{[%clk 1:32:38]} Bh4 {[%clk 1:30:24]} Bb4 {[%clk 1:33:02]} Nd2 {[%clk 1:24:53]}
Be7 {[%clk 1:32:41]} e3 {[%clk 1:23:01]} O-O {[%clk 1:32:56]} Bd3 {[%clk
1:18:07]} b6 {[%clk 1:33:13]} O-O {[%clk 1:13:06]} Bb7 {[%clk 1:33:31]} Qa4
{[%clk 1:08:56]} a6 {[%clk 1:28:35]} b4 {[%clk 1:03:00]} b5 {[%clk 1:16:48]} Qb3
{[%clk 1:01:11]} Nb6 {[%clk 1:16:54]} a4 {[%clk 0:52:10]} Nc4 {[%clk 1:17:04]}
Rfd1 {[%clk 0:51:27]} c6 {[%clk 1:08:24]} Nf3 {[%clk 0:47:24]} Re8 {[%clk
1:04:56]} h3 {[%clk 0:43:04]} g5 {[%clk 0:56:56]} Bg3 {[%clk 0:42:51]} Bd6
{[%clk 0:57:12]} Ne2 {[%clk 0:40:16]} Rb8 {[%clk 0:49:30]} Qc3 {[%clk 0:33:08]}
Nh5 {[%clk 0:45:48]} Bxd6 {[%clk 0:32:18]} Qxd6 {[%clk 0:46:10]} Bc2 {[%clk
0:22:31]} Bc8 {[%clk 0:38:24]} Nd2 {[%clk 0:16:20]} Rb7 {[%clk 0:33:46]} Re1
{[%clk 0:12:47]} Rbe7 {[%clk 0:33:25]} axb5 {[%clk 0:10:25]} axb5 {[%clk
0:33:06]} Ra8 {[%clk 0:08:35]} f5 {[%clk 0:30:47]} Nxc4 {[%clk 0:03:36]} bxc4
{[%clk 0:28:01]} Qd2 {[%clk 0:01:51]} f4 {[%clk 0:19:47]} Nc3 {[%clk 0:02:19]}
fxe3 {[%clk 0:20:02]} Rxe3 {[%clk 0:02:29]} Rxe3 {[%clk 0:20:27]} fxe3 {[%clk
0:02:54]} Rf8 {[%clk 0:20:36]} b5 {[%clk 0:00:38]} g4 {[%clk 0:17:11]} b6 {[%clk
0:00:31]} gxh3 {[%clk 0:08:39]} gxh3 {[%clk 0:01:00]} Qg3+ {[%clk 0:03:52]} Qg2
{[%clk 0:01:29]} Qxg2+ {[%clk 0:04:17]} Kxg2 {[%clk 0:01:55]} Bxh3+ {[%clk
0:04:45]} Kxh3 {[%clk 0:02:19]} Rxa8 {[%clk 0:05:12]} Ba4 {[%clk 0:01:24]} Rb8
{[%clk 0:05:14]} Bxc6 {[%clk 0:01:21]} Rxb6 {[%clk 0:05:43]} Bxd5+ {[%clk
0:19:00]} Kg7 {[%clk 0:36:00]} Bxc4 {[%clk 0:13:06]} Rc6 {[%clk 0:35:36]} Be2
{[%clk 0:13:31]} Rxc3 {[%clk 0:35:20]} Bxh5 {[%clk 0:13:59]} Rxe3+ {[%clk
0:35:44]} Kg4 {[%clk 0:11:50]} Re4+ {[%clk 0:36:00]} Kg3 {[%clk 0:11:53]} Rxd4
{[%clk 0:36:23]} Bg4 {[%clk 0:12:00]} Kg6 {[%clk 0:36:49]} Bc8 {[%clk 0:12:17]}
Kg5 {[%clk 0:37:13]} Be6 {[%clk 0:12:27]} Rd3+ {[%clk 0:37:38]} Kg2 {[%clk
0:12:48]} Kh4 {[%clk 0:37:48]} Bc8 {[%clk 0:12:43]} Rg3+ {[%clk 0:37:20]} Kf2
{[%clk 0:12:59]} Rg5 {[%clk 0:36:30]} Bd7 {[%clk 0:11:13]} Kh5 {[%clk 0:36:55]}
Kf3 {[%clk 0:10:51]} Kg6 {[%clk 0:37:19]} Kf4 {[%clk 0:10:50]} Kf6 {[%clk
0:37:14]} Bg4 {[%clk 0:10:46]} h5 {[%clk 0:37:36]} Bc8 {[%clk 0:11:00]} h4
{[%clk 0:37:18]} Bg4 {[%clk 0:07:13]} Rg7 {[%clk 0:37:42]} Kf3 {[%clk 0:07:22]}
Ke5 {[%clk 0:38:05]} Bc8 {[%clk 0:07:38]} Rg3+ {[%clk 0:38:30]} Kf2 {[%clk
0:08:05]} Kf4 {[%clk 0:38:57]} Bb7 {[%clk 0:07:36]} h3 {[%clk 0:39:22]} Bc6
{[%clk 0:08:00]} h2 {[%clk 0:39:45]} Bg2 {[%clk 0:08:25]} Rg7 {[%clk 0:40:11]}

[Variant "Standard"]
[Site "Europe Echecs"]

[Event "Open Cappelle-la-Grande"]
[Date "2026.02.25"]
[White "Rohith Krishna S"]
[Black "Zamengo, Fulvio"]
[WhiteElo "2484"]
[BlackElo "2375"]
[Round "7.7.3"]
[Result "1/2-1/2"]
[TimeControl "40/5400+30:1800+30"]

c4 {[%clk 1:30:35]} Nf6 {[%clk 1:23:29]} Nf3 {[%clk 1:30:48]} c5 {[%clk
1:22:42]} g3 {[%clk 1:30:22]} d5 {[%clk 1:21:12]} cxd5 {[%clk 1:30:31]} Nxd5
{[%clk 1:21:36]} Bg2 {[%clk 1:30:15]} Nc6 {[%clk 1:21:38]} O-O {[%clk 1:25:21]}
e5 {[%clk 1:14:59]} d3 {[%clk 1:22:31]} Be7 {[%clk 1:11:02]} Nc3 {[%clk
1:20:04]} Be6 {[%clk 1:06:28]} Bd2 {[%clk 1:20:07]} O-O {[%clk 1:05:04]} Rc1
{[%clk 1:19:27]} b6 {[%clk 1:05:02]} Re1 {[%clk 1:18:46]} Rc8 {[%clk 1:04:30]}
Qa4 {[%clk 1:17:48]} f6 {[%clk 1:00:38]} a3 {[%clk 1:08:26]} Qd7 {[%clk
0:46:08]} Nxd5 {[%clk 0:57:52]} Bxd5 {[%clk 0:46:31]} b4 {[%clk 0:58:17]} Qb7
{[%clk 0:39:25]} Nh4 {[%clk 0:49:11]} Bxg2 {[%clk 0:35:03]} Nxg2 {[%clk
0:49:35]} Nd4 {[%clk 0:35:05]} b5 {[%clk 0:48:10]} Bd6 {[%clk 0:29:42]} Bc3
{[%clk 0:45:11]} Rce8 {[%clk 0:25:00]} Bxd4 {[%clk 0:36:50]} exd4 {[%clk
0:25:23]} Qc4+ {[%clk 0:37:14]} Qf7 {[%clk 0:24:10]} a4 {[%clk 0:36:06]} Qxc4
{[%clk 0:22:26]} Rxc4 {[%clk 0:36:23]} a6 {[%clk 0:21:45]} bxa6 {[%clk 0:33:57]}
Ra8 {[%clk 0:22:07]} e3 {[%clk 0:28:50]} dxe3 {[%clk 0:22:30]} Nxe3 {[%clk
0:28:26]} Rxa6 {[%clk 0:21:19]} Nf5 {[%clk 0:26:22]} Rd8 {[%clk 0:21:44]} d4
{[%clk 0:26:14]} Bf8 {[%clk 0:21:51]} dxc5 {[%clk 0:26:01]}

[Variant "Standard"]
[Site "Europe Echecs"]